bitfinex-derivatives/quotes_BNBF0:USTF0_20250908
["timestamp","ask_amount","ask_price","bid_price","bid_amount"]
[1757312912732,0.64539895,872.5,870.75,1.36]
[1757312913032,0.64539895,872.49,870.75,1.36]
[1757312913228,0.64539895,872.48,870.75,1.36]
[1757312913435,0.64539895,872.47,870.75,1.36]
[1757312913633,0.64539895,872.46,870.75,1.36]
[1757312913833,0.64539895,872.45,870.75,1.36]
[1757312914030,0.64539895,872.44,870.75,1.36]
[1757312914230,0.64539895,872.43,870.75,1.36]
[1757312914530,1.52208989,872.57,870.75,1.36]
[1757312914731,0.64546459,872.56,870.75,1.36]
[1757312914927,0.64546459,872.55,870.75,1.36]
[1757312915130,0.64546459,872.54,870.75,1.36]
[1757312915330,0.64546459,872.53,870.75,1.36]
[1757312915531,0.64546459,872.52,870.75,1.36]
[1757312915731,0.64546459,872.51,870.75,1.36]
[1757312915934,0.64546459,872.5,870.75,1.36]
[1757312916230,0.64546459,872.49,870.75,1.36]
[1757312916435,0.64546459,872.48,870.75,1.36]
[1757312916636,0.64546459,872.47,870.75,1.36]
[1757312916932,0.64546459,872.46,870.75,1.36]
[1757312917137,0.64546459,872.45,870.75,1.36]
[1757312917337,0.64546459,872.44,870.75,1.36]
[1757312917537,0.64546459,872.43,870.75,1.36]
[1757312917734,1.52208989,872.68,870.75,1.36]
[1757312917934,1.01942418,872.47,870.75,1.36]
[1757312918139,1.01942418,872.67,870.75,1.36]
[1757312918339,0.6455182,872.66,870.75,1.36]
[1757312918539,0.6455182,872.65,870.75,1.36]
[1757312918834,0.6455182,872.64,870.75,1.36]
[1757312919036,0.6455182,872.63,870.75,1.36]
[1757312919236,0.6455182,872.62,870.75,1.36]
[1757312919436,0.6455182,872.61,870.75,1.36]
[1757312919636,0.6455182,872.6,870.75,1.36]
[1757312919839,0.6455182,872.59,870.75,1.36]
[1757312920135,1.01942418,872.75,870.75,1.36]
[1757312920136,0.6455182,872.58,870.75,1.36]
[1757312920435,0.6455182,872.57,870.75,1.36]
[1757312920636,0.6455182,872.56,870.75,1.36]
[1757312920836,0.6455182,872.55,870.75,1.36]
[1757312921037,0.6455182,872.54,870.75,1.36]
[1757312921240,0.6455182,872.53,870.75,1.36]
[1757312921537,0.6455182,872.52,870.75,1.36]
[1757312921740,0.6455182,872.51,870.75,1.36]
[1757312921940,0.6455182,872.5,870.75,1.36]
[1757312922139,0.6455182,872.49,870.75,1.36]
[1757312922337,0.6455182,872.48,870.75,1.36]
[1757312922540,0.6455182,872.47,870.75,1.36]
[1757312922840,0.6455182,872.46,870.75,1.36]
[1757312923040,0.6455182,872.45,870.75,1.36]
[1757312923340,1.01942418,872.67,870.75,1.36]
[1757312923539,0.64568185,872.66,870.75,1.36]
[1757312923737,0.64568185,872.65,870.75,1.36]
[1757312923941,0.64568185,872.64,870.75,1.36]
[1757312924135,0.64568185,872.63,870.75,1.36]
[1757312924336,0.64568185,872.62,870.75,1.36]
[1757312924539,0.64568185,872.61,870.75,1.36]
[1757312924741,0.64568185,872.6,870.75,1.36]
[1757312924943,0.64568185,872.59,870.75,1.36]
[1757312925142,0.64568185,872.58,870.75,1.36]
[1757312925436,0.64568185,872.57,870.75,1.36]
[1757312925642,0.64568185,872.56,870.75,1.36]
[1757312925936,0.64568185,872.55,870.75,1.36]
[1757312926142,0.64568185,872.54,870.75,1.36]
[1757312926340,0.64568185,872.53,870.75,1.36]
[1757312926536,0.64568185,872.52,870.75,1.36]
[1757312926739,0.64568185,872.51,870.75,1.36]
[1757312927043,0.64568185,872.5,870.75,1.36]
[1757312927244,0.64568185,872.49,870.75,1.36]
[1757312927442,0.64568185,872.48,870.75,1.36]
[1757312927644,0.64568185,872.47,870.75,1.36]
[1757312927845,0.64568185,872.46,870.75,1.36]
[1757312928045,1.01942418,872.69,870.75,1.36]
[1757312928246,1.01942418,872.55,870.75,1.36]
[1757312928447,0.64591177,872.54,870.75,1.36]
[1757312928646,0.64591177,872.53,870.75,1.36]
[1757312928846,1.52208989,872.77,870.75,1.36]
[1757312928847,0.64591177,872.52,870.75,1.36]
[1757312929045,0.64591177,872.51,870.75,1.36]
[1757312929246,0.64591177,872.5,870.75,1.36]
[1757312929446,0.64591177,872.49,870.75,1.36]
[1757312929742,0.64591177,872.48,870.75,1.36]
[1757312929945,0.64591177,872.47,870.75,1.36]
[1757312930244,0.64591177,872.46,870.75,1.36]
[1757312930450,1.01942418,872.56,870.75,1.36]
[1757312930744,0.64549737,872.55,870.75,1.36]
[1757312930948,0.64549737,872.54,870.75,1.36]
[1757312931148,0.64549737,872.53,870.75,1.36]
[1757312931448,0.64549737,872.52,870.75,1.36]
[1757312931651,0.64549737,872.51,870.75,1.36]
[1757312931948,0.64549737,872.5,870.75,1.36]
[1757312932246,0.64549737,872.49,870.75,1.36]
[1757312932549,0.64549737,872.48,870.75,1.36]
[1757312932749,0.64549737,872.47,870.75,1.36]
[1757312933046,0.64549737,872.46,870.75,1.36]
[1757312933248,1.01942418,872.53,870.75,1.36]
[1757312933548,0.64583955,872.52,870.75,1.36]
[1757312933848,0.64583955,872.51,870.75,1.36]
[1757312934047,0.64583955,872.5,870.75,1.36]
[1757312934246,0.64583955,872.49,870.75,1.36]
[1757312934446,0.64583955,872.48,870.75,1.36]
[1757312934649,0.64583955,872.47,870.75,1.36]
[1757312934946,0.64583955,872.46,870.75,1.36]
[1757312935150,1.01942418,872.53,870.75,1.36]
[1757312935445,1.01942418,872.47,870.75,1.36]
[1757312935745,0.64609045,872.46,870.75,1.36]
[1757312935949,1.01942418,872.47,870.75,1.36]
[1757312936246,1.66554648,872.46,870.8,1.53835521]
[1757312936449,1.01942418,872.46,870.82,1.53835521]
[1757312937246,1.01942418,872.46,870.84,1.53835521]
[1757312937452,1.01942418,872.46,870.85,1.53835521]
[1757312937651,1.01942418,872.47,870.76,1.53835521]
[1757312938348,1.01942418,872.47,870.78,1.53835521]
[1757312939350,1.01942418,872.47,870.84,1.53835521]
[1757312939947,1.01942418,872.5,870.75,1.36]
[1757312940151,0.64684882,872.49,870.75,1.36]
[1757312940351,0.64684882,872.48,870.75,1.36]
[1757312940648,1.01942418,872.54,870.75,1.36]
[1757312940848,0.64684882,872.53,870.75,1.36]
[1757312941049,0.64684882,872.52,870.75,1.36]
[1757312941251,0.64684882,872.51,870.75,1.36]
[1757312941449,0.64684882,872.5,870.75,1.36]
[1757312941648,0.64684882,872.49,870.75,1.36]
[1757312941848,0.64684882,872.48,870.75,1.36]
[1757312942048,1.01942418,872.54,870.75,1.36]
[1757312942349,0.64708117,872.53,870.75,1.36]
[1757312942552,0.64708117,872.52,870.75,1.36]
[1757312942852,0.64708117,872.51,870.75,1.36]
[1757312943051,0.64708117,872.5,870.75,1.36]
[1757312943249,0.64708117,872.49,870.75,1.36]
[1757312943452,0.64708117,872.48,870.75,1.36]
[1757312943649,1.01942418,872.53,870.75,1.36]
[1757312943948,0.64761858,872.52,870.75,1.36]
[1757312944151,0.64761858,872.51,870.75,1.36]
[1757312944353,0.64761858,872.5,870.75,1.36]
[1757312944653,0.64761858,872.49,870.75,1.36]
[1757312944954,0.64761858,872.48,870.75,1.36]
[1757312945254,1.01942418,872.5,870.75,1.36]
[1757312945450,1.01942418,872.48,870.75,2.89835521]
[1757312946251,1.01942418,872.48,870.78,1.53835521]
[1757312947352,1.01942418,872.48,870.83,1.53835521]
[1757312947758,1.01942418,872.49,870.93,1.53835521]
[1757312947957,0.64958797,872.48,870.93,1.53835521]
[1757312948158,1.01942418,872.49,870.93,1.53835521]
[1757312948358,0.64959643,872.48,870.93,1.53835521]
[1757312948555,1.01942418,872.49,870.93,1.53835521]
[1757312948758,0.64959949,872.48,870.93,1.53835521]
[1757312948955,1.01942418,872.49,870.93,1.53835521]
[1757312949258,0.64961078,872.48,870.73,1.53835521]
[1757312949458,0.64961078,872.47,870.73,1.53835521]
[1757312949656,0.64961078,872.46,870.73,1.53835521]
[1757312949861,1.01942418,872.61,870.76,1.53835521]
[1757312950156,1.66908931,872.6,870.77,1.53835521]
[1757312950357,1.66908931,872.59,870.77,1.53835521]
[1757312950561,0.64966513,872.58,870.77,1.53835521]
[1757312950760,0.64966513,872.57,870.77,1.53835521]
[1757312950955,0.64966513,872.56,870.77,1.53835521]
[1757312951157,0.64966513,872.55,870.78,2.97635521]
[1757312951462,0.64966513,872.54,870.78,1.438]
[1757312951663,0.64966513,872.53,870.78,1.438]
[1757312951963,0.64966513,872.52,870.78,1.438]
[1757312952263,0.64966513,872.51,870.78,1.438]
[1757312952459,0.64966513,872.5,870.78,1.438]
[1757312952658,0.64966513,872.49,870.78,1.438]
[1757312952859,0.64966513,872.48,870.78,1.438]
[1757312953160,0.64966513,872.47,870.78,1.438]
[1757312953361,0.64966513,872.46,870.78,2.97635521]
[1757312953560,1.01942418,872.59,870.78,2.97635521]
[1757312953761,1.01942418,872.33,870.84,1.53835521]
[1757312953963,1.66934592,872.32,870.83,1.53835521]
[1757312954160,1.01942418,872.32,870.82,1.53835521]
[1757312954860,1.01942418,872.32,870.83,1.53835521]
[1757312955266,1.01942418,872.32,870.82,1.53835521]
[1757312955567,1.01942418,872.32,870.83,1.53835521]
[1757312956162,1.01942418,872.32,870.82,1.53835521]
[1757312956467,1.01942418,872.32,870.83,1.53835521]
[1757312957163,1.01942418,872.32,870.82,1.53835521]
[1757312957467,1.01942418,872.32,870.83,1.53835521]
[1757312957963,1.01942418,872.32,870.82,1.53835521]
[1757312959269,1.01942418,872.32,870.81,1.53835521]
[1757312959568,1.01942418,872.32,870.83,1.53835521]
[1757312960264,1.01942418,872.32,870.82,1.53835521]
[1757312960966,1.01942418,872.32,870.86,1.53835521]
[1757312962665,1.01942418,872.32,870.88,1.53835521]
[1757312963171,1.01942418,872.32,870.91,1.53835521]
[1757312963672,1.01942418,872.32,870.94,1.53835521]
[1757312963872,1.01942418,872.32,870.97,1.53835521]
[1757312964068,2.54151407,872.32,870.99,1.53835521]
[1757312964470,2.54151407,872.33,871.0,1.53835521]
[1757312965373,2.54151407,872.33,870.99,1.53835521]
[1757312967674,2.54151407,872.33,870.98,1.53835521]
[1757312967869,2.54151407,872.33,871.0,1.53835521]
[1757312968375,2.54151407,872.33,870.99,1.53835521]
[1757312968671,2.54151407,872.33,870.98,1.53835521]
[1757312968970,2.54151407,872.33,870.99,1.53835521]
[1757312969170,2.54151407,872.33,871.0,1.53835521]
[1757312969572,2.54151407,872.33,871.01,1.53835521]
[1757312971276,2.54151407,872.33,871.0,1.53835521]
[1757312971571,1.01942418,872.72,870.78,1.438]
[1757312971773,0.65070199,872.71,870.78,1.438]
[1757312971972,0.65070199,872.7,870.78,1.438]
[1757312972176,0.65070199,872.69,870.78,1.438]
[1757312972375,0.65070199,872.68,870.78,1.438]
[1757312972576,0.65070199,872.67,870.78,1.438]
[1757312972872,0.65070199,872.66,870.78,1.438]
[1757312973076,0.65070199,872.65,870.78,1.438]
[1757312973276,0.65070199,872.64,870.78,1.438]
[1757312973575,0.65070199,872.63,870.78,1.438]
[1757312973774,0.65070199,872.62,870.78,1.438]
[1757312973976,0.65070199,872.61,870.78,1.438]
[1757312974274,0.65070199,872.6,870.78,1.438]
[1757312974473,0.65070199,872.59,870.78,1.438]
[1757312974672,0.65070199,872.58,870.78,1.438]
[1757312974876,0.65070199,872.57,870.78,1.438]
[1757312975177,0.65070199,872.56,870.78,1.438]
[1757312975378,0.65070199,872.55,870.78,1.438]
[1757312975572,0.65070199,872.54,870.78,1.438]
[1757312975872,0.65070199,872.53,870.78,1.438]
[1757312976075,0.65070199,872.52,870.73,0.5]
[1757312976270,1.01942418,872.73,870.73,0.5]
[1757312976271,0.65070199,872.51,870.73,0.5]
[1757312976475,0.65070199,872.5,870.73,0.5]
[1757312976676,0.65070199,872.49,870.81,1.53835521]
[1757312976871,0.65070199,872.48,870.81,1.53835521]
[1757312977172,0.65070199,872.47,870.81,1.53835521]
[1757312977471,0.65070199,872.46,870.81,1.53835521]
[1757312977676,0.65070199,872.45,870.82,1.53835521]
[1757312977876,1.01942418,872.54,870.82,1.53835521]
[1757312978071,0.6506841,872.53,870.82,1.53835521]
[1757312978275,0.6506841,872.52,870.82,1.53835521]
[1757312978474,0.6506841,872.51,870.82,1.53835521]
[1757312978674,0.6506841,872.5,870.82,1.53835521]
[1757312978977,0.6506841,872.49,870.85,1.53835521]
[1757312979178,0.6506841,872.48,870.85,1.53835521]
[1757312979480,0.6506841,872.47,870.85,1.53835521]
[1757312979675,0.6506841,872.46,870.85,1.53835521]
[1757312979977,0.6506841,872.45,870.85,1.53835521]
[1757312980178,1.01942418,872.51,870.85,1.53835521]
[1757312980377,0.65069994,872.5,870.85,1.53835521]
[1757312980574,0.65069994,872.49,870.73,0.5]
[1757312980778,0.65069994,872.48,870.73,0.5]
[1757312980977,0.65069994,872.47,870.73,0.5]
[1757312981178,0.65069994,872.46,870.73,0.5]
[1757312981480,0.65069994,872.45,870.73,0.5]
[1757312981675,0.65069994,872.44,870.73,0.5]
[1757312981876,0.65069994,872.43,870.73,0.5]
[1757312982077,0.65069994,872.42,870.73,0.5]
[1757312982276,0.65069994,872.41,870.73,0.5]
[1757312982475,0.65069994,872.4,870.73,0.5]
[1757312982674,0.65069994,872.39,870.73,0.5]
[1757312982875,1.01942418,872.64,870.73,0.5]
[1757312982876,0.65069994,872.38,870.73,0.5]
[1757312983078,0.65069994,872.37,870.73,0.5]
[1757312983278,1.01942418,872.64,870.73,0.5]
[1757312983279,0.65069994,872.36,870.73,0.5]
[1757312983581,0.65069994,872.35,870.73,0.5]
[1757312983779,0.65069994,872.34,870.73,0.5]
[1757312983981,1.01942418,872.31,870.73,0.5]
[1757312984179,0.65069994,872.3,870.73,0.5]
[1757312984482,0.65069994,872.29,870.73,0.5]
[1757312984676,0.65069994,872.28,870.73,0.5]
[1757312984878,0.65069994,872.27,870.73,0.5]
[1757312985082,1.01942418,872.32,870.73,0.5]
[1757312985281,0.65235885,872.31,870.73,0.5]
[1757312985478,0.65235885,872.3,870.73,0.5]
[1757312985683,0.65235885,872.29,870.73,0.5]
[1757312985880,0.65235885,872.28,870.73,0.5]
[1757312986079,0.65235885,872.27,870.73,0.5]
[1757312986383,1.01942418,872.33,870.73,0.5]
[1757312986584,0.65232273,872.32,870.73,0.5]
[1757312986884,0.65232273,872.31,870.73,0.5]
[1757312987081,0.65232273,872.3,870.73,0.5]
[1757312987280,0.65232273,872.29,870.73,0.5]
[1757312987481,0.65232273,872.28,870.73,0.5]
[1757312987684,0.65232273,872.27,870.73,0.5]
[1757312987981,1.01942418,872.33,870.73,0.5]
[1757312988181,0.65228691,872.32,870.73,0.5]
[1757312988386,0.65228691,872.31,870.73,0.5]
[1757312988580,0.65228691,872.3,870.73,0.5]
[1757312988785,0.65228691,872.29,870.73,0.5]
[1757312988983,0.65228691,872.28,870.73,0.5]
[1757312989183,0.65228691,872.27,870.73,0.5]
[1757312989481,1.01942418,872.34,870.73,0.5]
[1757312989680,0.65222842,872.33,870.73,0.5]
[1757312989885,0.65222842,872.32,870.73,0.5]
[1757312990085,1.01942418,872.34,870.73,0.5]
[1757312990086,0.65222842,872.31,870.73,0.5]
[1757312990286,1.01942418,872.27,870.73,0.5]
[1757313000684,1.01942418,872.25,870.73,0.5]
[1757313004491,1.01942418,872.26,870.73,0.5]
[1757313014395,2.54151407,872.26,870.73,0.5]
[1757313016500,1.01942418,872.26,870.73,0.5]
[1757313020403,1.67082446,872.25,870.73,0.5]
[1757313020603,1.01942418,872.25,870.73,0.5]
[1757313020903,1.01942418,872.66,870.73,0.5]
[1757313021206,0.65135104,872.65,870.73,0.5]
[1757313021409,0.65135104,872.64,870.73,0.5]
[1757313021609,1.01942418,872.45,870.64,0.19913593]
[1757313021809,1.67077522,872.44,870.64,0.19913593]
[1757313022006,0.65135104,872.43,870.64,0.19913593]
[1757313022210,0.65135104,872.42,870.64,0.19913593]
[1757313022410,0.65135104,872.41,870.64,0.19913593]
[1757313022709,1.01942418,872.36,870.64,0.19913593]
[1757313022905,1.01942418,872.24,870.64,0.19913593]
[1757313023511,1.01942418,872.32,870.64,0.19913593]
[1757313023713,0.65203431,872.31,870.64,0.19913593]
[1757313023913,0.65203431,872.3,870.64,0.19913593]
[1757313024114,1.67145849,872.29,870.64,0.19913593]
[1757313024307,1.01942418,872.25,870.64,0.19913593]
[1757313024512,0.65203431,872.24,870.64,0.19913593]
[1757313024714,0.65203431,872.23,870.64,0.19913593]
[1757313024911,0.65203431,872.22,870.64,0.19913593]
[1757313025110,1.01942418,872.16,870.64,0.19913593]
[1757313025309,1.01942418,872.14,870.64,0.19913593]
[1757313025515,0.65203431,872.13,870.64,0.19913593]
[1757313025714,2.54151407,871.96,870.64,0.19913593]
[1757313026210,1.01942418,871.96,870.64,0.19913593]
[1757313026614,1.01942418,871.86,870.64,0.19913593]
[1757313027312,1.01942418,871.88,870.64,0.19913593]
[1757313027509,1.67027164,871.87,870.64,0.19913593]
[1757313027712,0.65084746,871.86,870.64,0.19913593]
[1757313027915,1.01942418,871.84,870.64,0.19913593]
[1757313028210,0.65084746,871.83,870.64,0.19913593]
[1757313028414,1.01942418,871.85,870.64,0.19913593]
[1757313028615,0.65051477,871.84,870.64,0.19913593]
[1757313028815,0.65051477,871.83,870.64,0.19913593]
[1757313029020,1.01942418,871.93,870.64,0.19913593]
[1757313029217,0.65049522,871.92,870.64,0.19913593]
[1757313029418,0.65049522,871.91,870.64,0.19913593]
[1757313029614,0.65049522,871.9,870.64,0.19913593]
[1757313029914,0.65049522,871.89,870.64,0.19913593]
[1757313030116,0.65049522,871.88,870.64,0.19913593]
[1757313030319,0.65049522,871.87,870.64,0.19913593]
[1757313030519,0.65049522,871.86,870.64,0.19913593]
[1757313030817,0.65049522,871.85,870.64,0.19913593]
[1757313031015,0.65049522,871.84,870.64,0.19913593]
[1757313031214,0.65049522,871.83,870.64,0.19913593]
[1757313031416,0.65049522,871.82,870.64,0.19913593]
[1757313031615,0.65049522,871.81,870.64,0.19913593]
[1757313031816,0.65049522,871.8,870.64,0.19913593]
[1757313032019,0.65049522,871.79,870.64,0.19913593]
[1757313032220,0.65049522,871.78,870.64,0.19913593]
[1757313032517,0.65049522,871.77,870.64,0.19913593]
[1757313032719,0.65049522,871.76,870.64,0.19913593]
[1757313032920,0.65049522,871.75,870.64,0.19913593]
[1757313033215,0.65049522,871.74,870.64,0.19913593]
[1757313033419,1.01942418,871.95,870.64,0.19913593]
[1757313033619,0.64926385,871.94,870.64,0.19913593]
[1757313033819,0.64926385,871.93,870.64,0.19913593]
[1757313034017,0.64926385,871.92,870.64,0.19913593]
[1757313034221,0.64926385,871.91,870.64,0.19913593]
[1757313034520,0.64926385,871.9,870.64,0.19913593]
[1757313034717,0.64926385,871.89,870.64,0.19913593]
[1757313034917,0.64926385,871.88,870.64,0.19913593]
[1757313035115,0.64926385,871.87,870.64,0.19913593]
[1757313035421,0.64926385,871.86,870.64,0.19913593]
[1757313035620,0.64926385,871.85,870.64,0.19913593]
[1757313035818,0.64926385,871.84,870.64,0.19913593]
[1757313036018,0.64926385,871.83,870.64,0.19913593]
[1757313036216,0.64926385,871.82,870.64,0.19913593]
[1757313036422,0.64926385,871.81,870.64,0.19913593]
[1757313036616,0.64926385,871.8,870.64,0.19913593]
[1757313036818,0.64926385,871.79,870.64,0.19913593]
[1757313037121,0.64926385,871.78,870.64,0.19913593]
[1757313037321,0.64926385,871.77,870.64,0.19913593]
[1757313037521,0.64926385,871.76,870.64,0.19913593]
[1757313037722,0.64926385,871.75,870.64,0.19913593]
[1757313037919,0.6490388,871.74,870.64,0.19913593]
[1757313038123,1.01942418,871.97,870.64,0.19913593]
[1757313038321,0.64896653,871.96,870.64,0.19913593]
[1757313038520,0.64896653,871.95,870.64,0.19913593]
[1757313038724,0.64896653,871.94,870.64,0.19913593]
[1757313038924,0.64896653,871.93,870.64,0.19913593]
[1757313039224,0.64896653,871.92,870.64,0.19913593]
[1757313039526,0.64896653,871.91,870.64,0.19913593]
[1757313039726,0.64896653,871.9,870.64,0.19913593]
[1757313040021,0.64896653,871.89,870.64,0.19913593]
[1757313040225,0.64896653,871.88,870.64,0.19913593]
[1757313040523,0.64896653,871.87,870.64,0.19913593]
[1757313040725,0.64896653,871.86,870.64,0.19913593]
[1757313041020,0.64896653,871.85,870.64,0.19913593]
[1757313041225,0.64896653,871.84,870.64,0.19913593]
[1757313041525,0.64896653,871.83,870.64,0.19913593]
[1757313041821,0.64896653,871.82,870.64,0.19913593]
[1757313042025,0.64896653,871.81,870.64,0.19913593]
[1757313042226,1.01942418,871.96,870.64,0.19913593]
[1757313042422,0.64875208,871.95,870.64,0.19913593]
[1757313042622,0.64875208,871.94,870.64,0.19913593]
[1757313042820,0.64875208,871.93,870.64,0.19913593]
[1757313043022,0.64875208,871.92,870.64,0.19913593]
[1757313043226,0.64875208,871.91,870.64,0.19913593]
[1757313043522,0.64875208,871.9,870.64,0.19913593]
[1757313043721,0.64875208,871.89,870.64,0.19913593]
[1757313043921,0.64875208,871.88,870.64,0.19913593]
[1757313044125,0.64875208,871.87,870.64,0.19913593]
[1757313044320,0.64875208,871.86,870.64,0.19913593]
[1757313044624,0.64875208,871.85,870.64,0.19913593]
[1757313044825,0.64875208,871.84,870.64,0.19913593]
[1757313045025,0.64875208,871.83,870.64,0.19913593]
[1757313045223,0.64875208,871.82,870.64,0.19913593]
[1757313045521,0.64875208,871.81,870.64,0.19913593]
[1757313045722,1.01942418,871.96,870.64,0.19913593]
[1757313045926,0.64877303,871.95,870.64,0.19913593]
[1757313046226,0.64877303,871.94,870.64,0.19913593]
[1757313046423,1.01942418,871.92,870.64,0.19913593]
[1757313046626,0.64877303,871.91,870.64,0.19913593]
[1757313046824,0.64877303,871.9,870.64,0.19913593]
[1757313047023,0.64877303,871.89,870.64,0.19913593]
[1757313047227,0.64877303,871.88,870.64,0.19913593]
[1757313047423,0.64877303,871.87,870.64,0.19913593]
[1757313047628,0.64877303,871.86,870.64,0.19913593]
[1757313047828,0.64877303,871.85,870.64,0.19913593]
[1757313048132,0.64877303,871.84,870.64,0.19913593]
[1757313048329,0.64877303,871.83,870.64,0.19913593]
[1757313048529,1.01942418,871.81,870.64,0.19913593]
[1757313053129,1.01942418,871.97,870.64,0.19913593]
[1757313053333,0.64898827,871.96,870.64,0.19913593]
[1757313053530,0.64898827,871.95,870.64,0.19913593]
[1757313053729,0.64898827,871.94,870.64,0.19913593]
[1757313053933,0.64898827,871.93,870.64,0.19913593]
[1757313054233,0.64898827,871.92,870.64,0.19913593]
[1757313054433,0.64898827,871.91,870.64,0.19913593]
[1757313054730,0.64898827,871.9,870.64,0.19913593]
[1757313054928,0.64898827,871.89,870.64,0.19913593]
[1757313055129,0.64898827,871.88,870.64,0.19913593]
[1757313055328,0.64898827,871.87,870.64,0.19913593]
[1757313055530,0.64898827,871.86,870.64,0.19913593]
[1757313055729,0.64898827,871.85,870.64,0.19913593]
[1757313056034,0.64898827,871.84,870.64,0.19913593]
[1757313056332,0.64898827,871.83,870.64,0.19913593]
[1757313056630,0.64898827,871.82,870.64,0.19913593]
[1757313056829,0.64898827,871.81,870.64,0.19913593]
[1757313057031,0.64898827,871.8,870.64,0.19913593]
[1757313057330,1.01942418,871.94,870.64,0.19913593]
[1757313057634,0.64907245,871.93,870.64,0.19913593]
[1757313057829,0.64907245,871.92,870.64,0.19913593]
[1757313058034,0.64907245,871.91,870.64,0.19913593]
[1757313058231,0.64907245,871.9,870.64,0.19913593]
[1757313058431,0.64907245,871.89,870.64,0.19913593]
[1757313058732,0.64907245,871.88,870.64,0.19913593]
[1757313058934,0.64907245,871.87,870.64,0.19913593]
[1757313059130,0.64907245,871.86,870.64,0.19913593]
[1757313059332,0.64907245,871.85,870.64,0.19913593]
[1757313059534,0.64907245,871.84,870.64,0.19913593]
[1757313059736,0.64907245,871.83,870.64,0.19913593]
[1757313059935,0.64907245,871.82,870.64,0.19913593]
[1757313060232,0.64907245,871.81,870.64,0.19913593]
[1757313060436,0.64907245,871.8,870.64,0.19913593]
[1757313060735,1.01942418,871.94,870.64,0.19913593]
[1757313060931,0.64912869,871.93,870.64,0.19913593]
[1757313061131,0.64912869,871.92,870.64,0.19913593]
[1757313061432,0.64912869,871.91,870.64,0.19913593]
[1757313061635,0.64912869,871.9,870.64,0.19913593]
[1757313061834,0.64912869,871.89,870.64,0.19913593]
[1757313062035,0.64912869,871.88,870.64,0.19913593]
[1757313062232,0.64912869,871.87,870.64,0.19913593]
[1757313062437,0.64912869,871.86,870.64,0.19913593]
[1757313062636,0.64912869,871.85,870.64,0.19913593]
[1757313062836,0.64912869,871.84,870.64,0.19913593]
[1757313063037,1.01942418,871.82,870.64,0.19913593]
[1757313064233,1.66872946,871.81,870.64,0.19913593]
[1757313064431,1.01942418,871.81,870.64,0.19913593]
[1757313067240,1.01942418,871.82,870.64,0.19913593]
[1757313067438,0.6495547,871.81,870.64,0.19913593]
[1757313067741,1.01942418,871.84,870.64,0.19913593]
[1757313067939,0.64955464,871.83,870.64,0.19913593]
[1757313068239,0.64955464,871.82,870.64,0.19913593]
[1757313068437,0.64955464,871.81,870.64,0.19913593]
[1757313068737,1.01942418,871.83,870.64,0.19913593]
[1757313068942,0.64964643,871.82,870.64,0.19913593]
[1757313069242,0.64964643,871.81,870.64,0.19913593]
[1757313069539,1.01942418,871.83,870.64,0.19913593]
[1757313069740,0.64974661,871.82,870.64,0.19913593]
[1757313069938,0.64974661,871.81,870.64,0.19913593]
[1757313070137,1.01942418,871.83,870.64,0.19913593]
[1757313070342,0.64982704,871.82,870.64,0.19913593]
[1757313070538,1.01942418,871.83,870.64,0.19913593]
[1757313070539,0.64982704,871.81,870.64,0.19913593]
[1757313070838,1.01942418,871.83,870.64,0.19913593]
[1757313071039,0.64985532,871.82,870.64,0.19913593]
[1757313071339,0.64985532,871.81,870.64,0.19913593]
[1757313071539,1.01942418,871.83,870.64,0.19913593]
[1757313071842,0.64997454,871.82,870.64,0.19913593]
[1757313072042,0.64997454,871.81,870.64,0.19913593]
[1757313072245,1.01942418,871.83,870.64,0.19913593]
[1757313072441,0.65010605,871.82,870.64,0.19913593]
[1757313072741,0.65010605,871.81,870.64,0.19913593]
[1757313072941,1.01942418,871.83,870.64,0.19913593]
[1757313073244,0.65010354,871.82,870.64,0.19913593]
[1757313073446,0.65010354,871.81,870.64,0.19913593]
[1757313073640,1.01942418,871.83,870.64,0.19913593]
[1757313073843,0.65024478,871.82,870.64,0.19913593]
[1757313074045,0.65024478,871.81,870.64,0.19913593]
[1757313074241,1.01942418,871.83,870.64,0.19913593]
[1757313074443,0.65039903,871.82,870.64,0.19913593]
[1757313074644,0.65039903,871.81,870.64,0.19913593]
[1757313074843,1.01942418,871.83,870.64,0.19913593]
[1757313075047,0.65039901,871.82,870.64,0.19913593]
[1757313075246,0.65039901,871.81,870.64,0.19913593]
[1757313075445,1.01942418,871.83,870.64,0.19913593]
[1757313075744,0.65056761,871.82,870.64,0.19913593]